fUST/lending_fUST_20250111
["ID","MTS","AMOUNT","RATE_DAILY","PERIOD"]
[348471260,1736547032884,-500.0,0.00021917,3]
[348471262,1736547032895,-730.33,0.00021917,3]
[348471265,1736547032905,-498.31,0.00021917,3]
[348471267,1736547032916,-568.72,0.00021917,3]
[348471269,1736547032925,-2153.18,0.00021917,3]
[348471271,1736547032935,-500.0,0.00021917,3]
[348471273,1736547032947,-500.0,0.00021917,3]
[348471275,1736547032958,-500.0,0.00021917,2]
[348471277,1736547032969,-574.97,0.00021917,3]
[348471279,1736547032981,-506.59,0.00021917,3]
[348471281,1736547032992,-500.0,0.00021917,3]
[348471284,1736547033005,-500.0,0.00021917,3]
[348471286,1736547033016,-500.0,0.00021917,3]
[348471288,1736547033028,-500.0,0.00021917,3]
[348471290,1736547033039,-500.0,0.00021917,3]
[348471292,1736547033049,-500.0,0.00021917,3]
[348471294,1736547033060,-500.0,0.00021917,3]
[348471297,1736547033071,-631.88,0.00021917,3]
[348471299,1736547033083,-500.0,0.00021917,3]
[348471301,1736547033094,-497.65,0.00021917,3]
[348471303,1736547033106,-500.0,0.00021917,3]
[348471305,1736547033116,-500.0,0.00021917,3]
[348471307,1736547033127,-500.0,0.00021917,3]
[348471309,1736547033139,-503.25,0.00021917,3]
[348471311,1736547033151,-500.0,0.00021917,3]
[348471314,1736547033161,-500.0,0.00021917,3]
[348471316,1736547033173,-476.2,0.00021917,3]
[348471318,1736547033183,-500.0,0.00021917,3]
[348471320,1736547033194,-19691.1,0.00021917,3]
[348471322,1736547033206,-620.69,0.00021917,3]
[348471324,1736547033217,-500.0,0.00021917,3]
[348471326,1736547033228,-704.16,0.00021917,3]
[348471328,1736547033239,-859.76,0.00021917,3]
[348471331,1736547033250,-577.38,0.00021917,2]
[348471333,1736547033263,-500.0,0.00021917,3]
[348471335,1736547033274,-681.98,0.00021917,3]
[348471337,1736547033287,-2471.84,0.00021917,3]
[348471339,1736547033299,-500.0,0.00021917,3]
[348471341,1736547033311,-868.54,0.00021917,3]
[348471344,1736547033323,-4829.73,0.00021917,3]
[348471346,1736547033335,-2000.0,0.00021917,2]
[348471348,1736547033348,-500.0,0.00021917,3]
[348471350,1736547033359,-691.0,0.00021917,3]
[348471352,1736547033371,-261.96563202,0.00021917,3]
[348471354,1736547033382,-672.27,0.00021917,3]
[348471356,1736547033393,-500.0,0.00021917,3]
[348471359,1736547033405,-500.0,0.00021917,3]
[348471361,1736547033418,-1648.92,0.00021917,3]
[348471363,1736547033428,-500.0,0.00021917,3]
[348471365,1736547033439,-917.21,0.00021917,3]
[348471367,1736547033451,-500.0,0.00021917,3]
[348471369,1736547033462,-500.0,0.00021917,3]
[348471372,1736547033473,-500.0,0.00021917,3]
[348471373,1736547033485,-581.32,0.00021917,3]
[348471374,1736547033496,-4432.1,0.00021917,3]
[348471375,1736547033508,-553.52,0.00021917,3]
[348471376,1736547033519,-500.0,0.00021917,3]
[348471377,1736547033530,-1752.05,0.00021917,3]
[348471378,1736547033541,-629.87,0.00021917,3]
[348471379,1736547033552,-684.43,0.00021917,3]
[348471380,1736547033563,-500.0,0.00021917,3]
[348471381,1736547033574,-567.79,0.00021917,3]
[348471382,1736547033585,-1613.73,0.00021917,3]
[348471383,1736547033597,-500.0,0.00021917,3]
[348471384,1736547033608,-500.0,0.00021917,3]
[348471385,1736547033621,-5293.91,0.00021917,3]
[348471386,1736547033632,-2852.24522499,0.00021918,2]
[348471387,1736547033643,-1162.56,0.00022,2]
[348471388,1736547033655,-170.67890102,0.00022069,2]
[348471389,1736547033666,-518.97065756,0.0002213,2]
[348471390,1736547033682,-192.86734244,0.0002213,2]
[348471391,1736547033693,-2441.62551247,0.00022185,2]
[348471393,1736547033704,-616.73,0.00022191,3]
[348471395,1736547033716,-730.33,0.00022191,3]
[348471397,1736547033727,-568.72,0.00022191,3]
[348471415,1736547033896,-2153.18,0.00022191,3]
[348471418,1736547033923,-500.0,0.00022191,3]
[348471421,1736547033936,-500.0,0.00022191,3]
[348471423,1736547033947,-500.0,0.00022191,2]
[348471425,1736547033957,-574.97,0.00022191,3]
[348471427,1736547033967,-506.59,0.00022191,3]
[348471429,1736547033976,-500.0,0.00022191,3]
[348471431,1736547033985,-500.0,0.00022191,3]
[348471433,1736547033995,-500.0,0.00022191,3]
[348471435,1736547034004,-500.0,0.00022191,3]
[348471437,1736547034014,-500.0,0.00022191,3]
[348471439,1736547034023,-500.0,0.00022191,3]
[348471441,1736547034032,-500.0,0.00022191,3]
[348471443,1736547034042,-500.0,0.00022191,3]
[348471445,1736547034052,-500.0,0.00022191,3]
[348471447,1736547034063,-334.04215805,0.00022191,3]
[348471449,1736547034072,-500.0,0.00022191,3]
[348471451,1736547034082,-503.25,0.00022191,3]
[348471453,1736547034091,-500.0,0.00022191,3]
[348471454,1736547034100,-500.0,0.00022191,3]
[348471456,1736547034109,-556.85,0.00022191,3]
[348471458,1736547034119,-8331.928651,0.00022191,3]
[348471461,1736547034136,-551.656765,0.00022191,3]
[348471814,1736547038206,-500.0,0.00021429,2]
[348471815,1736547038217,-461.01068651,0.00022191,3]
[348471866,1736547043243,-3502.5558197,0.00021917,3]
[348471886,1736547379759,157.997115,0.00013973,2]
[348471889,1736548173415,424.84,0.00015052,2]
[348471913,1736548238269,-164.58121874,0.000189,2]
[348471915,1736548238279,-135.41878126,0.00018999,2]
[348471917,1736548238292,-164.58121874,0.00018999,2]
[348471919,1736548238301,-581.62514761,0.00018999,2]
[348471921,1736548238311,-579.59938295,0.00018999,2]
[348471923,1736548238320,-395.3573474,0.00018999,2]
[348471925,1736548238333,-11671.8782871,0.00019,2]
[348471938,1736548238447,-1584.60742095,0.00019,2]
[348472020,1736548457828,157.997115,0.00013973,2]
[348472023,1736549313969,157.997115,0.00013973,2]
[348472049,1736549432950,-171.91076294,0.00018898,2]
[348472050,1736549432961,-159.72081249,0.000189,2]
[348472051,1736549432971,-121.30870657,0.00018989,2]
[348472093,1736549438463,-29.8627589,0.00018989,2]
[348472095,1736549438473,-300.0,0.00018997,2]
[348472097,1736549438482,-710.05154789,0.00018998,5]
[348472099,1736549438496,-891.85929846,0.00018998,5]
[348472111,1736549438598,-23983.79983707,0.00018998,5]
[348472115,1736549438627,-653.49,0.00018998,5]
[348472300,1736549440655,-34875.01753559,0.00018998,5]
[348472302,1736549440665,-31107.03473014,0.00018998,5]
[348472304,1736549440675,-266.02475717,0.00018999,2]
[348472306,1736549440684,-17223.40709548,0.00019,2]
[348472308,1736549440694,-302.8183302,0.00019,2]
[348472310,1736549440703,-167.192672,0.00019178,2]
[348472312,1736549440714,-153.76,0.00019278,2]
[348472314,1736549440723,-156.766,0.00019278,2]
[348472316,1736549440732,-1296.66390477,0.000199,2]
[348472318,1736549440742,-4083.15419528,0.0002,7]
[348472320,1736549440752,-1296.66390458,0.00020038,2]
[348472322,1736549440761,-1296.66390458,0.00020176,2]
[348472324,1736549440771,-1296.66390458,0.00020314,2]
[348472326,1736549440781,-1296.66390458,0.00020452,2]
[348472328,1736549440790,-1296.66390458,0.0002059,2]
[348472330,1736549440800,-1296.66390458,0.00020728,2]
[348472331,1736549440809,-153.8340312,0.00020807,2]
[348472333,1736549440819,-209.8790131,0.00020807,2]
[348472335,1736549440828,-1296.66390458,0.00020866,2]
[348472337,1736549440839,-536.0469094,0.00020941,2]
[348472339,1736549440848,-428.23906719,0.0002098,2]
[348472342,1736549440858,-621.43200873,0.00020983,2]
[348472344,1736549440868,-621.43200873,0.00020983,2]
[348472346,1736549440877,-428.23906719,0.00020988,2]
[348472348,1736549440887,-428.23906719,0.00020989,2]
[348472350,1736549440897,-621.43200873,0.00021,2]
[348472352,1736549440906,-1296.66390458,0.00021003,2]
[348472354,1736549440916,-353.1353581,0.00021041,2]
[348472356,1736549440925,-353.1353581,0.00021041,2]
[348472358,1736549440935,-353.1353581,0.00021041,2]
[348472359,1736549440944,-353.1353581,0.00021041,2]
[348472361,1736549440956,-353.1353581,0.00021041,2]
[348472363,1736549440966,-178.3086344,0.00021078,2]
[348472365,1736549440976,-214.7830993,0.00021078,2]
[348472368,1736549440986,-1296.66390458,0.00021141,2]
[348472370,1736549440995,-171.91076293,0.00021156,2]
[348472371,1736549441005,-153.0,0.00021178,2]
[348472373,1736549441014,-214.7830993,0.00021178,2]
[348472375,1736549441024,-402.6526866,0.00021178,2]
[348472378,1736549441034,-155.9606028,0.00021178,2]
[348472380,1736549441047,-153.8340312,0.00021178,2]
[348472382,1736549441058,-153.0,0.00021178,2]
[348472384,1736549441068,-153.8340312,0.00021178,2]
[348472386,1736549441077,-214.7830993,0.00021178,2]
[348472388,1736549441087,-153.8340312,0.00021178,2]
[348472390,1736549441097,-214.7830993,0.00021178,2]
[348472392,1736549441107,-153.0,0.00021178,2]
[348472394,1736549441116,-214.7830993,0.00021178,2]
[348472396,1736549441126,-153.8340312,0.00021178,2]
[348472398,1736549441135,-197.675953,0.00021178,2]
[348472400,1736549441145,-400.2439307,0.00021178,2]
[348472402,1736549441154,-153.0,0.00021178,2]
[348472404,1736549441164,-153.0,0.00021178,2]
[348472406,1736549441174,-307.6506763,0.00021178,2]
[348472408,1736549441185,-214.7830993,0.00021178,2]
[348472410,1736549441195,-153.8340312,0.00021178,2]
[348472412,1736549441205,-1296.66390458,0.00021279,2]
[348472414,1736549441214,-1296.66390458,0.00021417,2]
[348472416,1736549441224,-1296.66390458,0.00021555,2]
[348472418,1736549441233,-1296.66390458,0.00021693,2]
[348472420,1736549441243,-1296.66390458,0.00021831,2]
[348472422,1736549441253,-705.496,0.0002186,2]
[348472424,1736549441263,-500.0,0.00021917,3]
[348472426,1736549441274,-500.0,0.00021917,3]
[348472428,1736549441284,-500.0,0.00021917,3]
[348472430,1736549441294,-500.0,0.00021917,3]
[348472432,1736549441303,-527.05,0.00021917,3]
[348472434,1736549441313,-500.0,0.00021917,2]
[348472436,1736549441323,-500.0,0.00021917,3]
[348472437,1736549441332,-521.32,0.00021917,3]
[348472439,1736549441342,-500.0,0.00021917,3]
[348472441,1736549441352,-500.0,0.00021917,3]
[348472442,1736549441362,-500.0,0.00021917,3]
[348472444,1736549441371,-151.0,0.00021917,2]
[348472445,1736549441380,-500.0,0.00021917,3]
[348472447,1736549441390,-500.0,0.00021917,3]
[348472448,1736549441399,-500.0,0.00021917,3]
[348472449,1736549441409,-500.0,0.00021917,3]
[348472450,1736549441419,-500.0,0.00021917,3]
[348472451,1736549441428,-500.0,0.00021917,3]
[348472452,1736549441438,-500.0,0.00021917,3]
[348472453,1736549441448,-293.04,0.00021917,3]
[348472454,1736549441457,-500.0,0.00021917,3]
[348472455,1736549441466,-500.0,0.00021917,3]
[348472456,1736549441475,-500.0,0.00021917,3]
[348472457,1736549441612,-500.0,0.00021917,3]
[348472458,1736549441623,-500.0,0.00021917,3]
[348472459,1736549441632,-501.97550749,0.00021917,3]
[348472460,1736549441642,-489.49357555,0.00021917,3]
[348472462,1736549441651,-2016.13,0.00021917,3]
[348472464,1736549441662,-151.0,0.00021917,2]
[348472465,1736549441671,-500.0,0.00021917,3]
[348472467,1736549441680,-500.0,0.00021917,3]
[348472468,1736549441690,-674.82,0.00021917,3]
[348472469,1736549441699,-823.94,0.00021917,3]
[348472470,1736549441708,-500.0,0.00021917,3]
[348472471,1736549441718,-653.56,0.00021917,3]
[348472472,1736549441727,-553.33,0.00021917,2]
[348472473,1736549441737,-832.35,0.00021917,3]
[348472474,1736549441746,-2476.18,0.00021917,3]
[348472475,1736549441756,-500.0,0.00021917,3]
[348472476,1736549441765,-500.0,0.00021917,2]
[348472477,1736549441775,-500.0,0.00021917,3]
[348472478,1736549441784,-500.0,0.00021917,3]
[348472479,1736549441794,-5580.84,0.00021917,3]
[348472480,1736549441804,-644.26,0.00021917,3]
[348472481,1736549441814,-662.21,0.00021917,3]
[348472482,1736549441824,-5131.71,0.00021917,3]
[348472483,1736549441833,-500.0,0.00021917,3]
[348472484,1736549441843,-616.54,0.00021917,3]
[348472485,1736549441853,-500.0,0.00021917,3]
[348472486,1736549441862,-500.0,0.00021917,3]
[348472487,1736549441873,-500.0,0.00021917,3]
[348472488,1736549441883,-1580.21,0.00021917,3]
[348472489,1736549441893,-500.0,0.00021917,3]
[348472490,1736549441903,-842.37,0.00021917,3]
[348472491,1736549441913,-500.0,0.00021917,3]
[348472492,1736549441922,-500.0,0.00021917,3]
[348472493,1736549441932,-520.45,0.00021917,3]
[348472494,1736549441942,-4374.33,0.00021917,3]
[348472495,1736549441952,-521.05124076,0.00021917,3]
[348472496,1736549441961,-530.46,0.00021917,3]
[348472497,1736549441971,-500.0,0.00021917,3]
[348472498,1736549441980,-500.0,0.00021917,3]
[348472499,1736549441989,-603.62,0.00021917,3]
[348472500,1736549441998,-500.0,0.00021917,3]
[348472501,1736549442008,-1679.05,0.00021917,3]
[348472502,1736549442017,-500.0,0.00021917,3]
[348472503,1736549442027,-503.67544171,0.00021917,3]
[348472504,1736549442036,-500.0,0.00021917,3]
[348472505,1736549442046,-151.0,0.00021917,2]
[348472506,1736549442056,-1546.49,0.00021917,3]
[348472507,1736549442065,-828.03,0.00021917,3]
[348472508,1736549442075,-500.0,0.00021917,3]
[348472509,1736549442085,-920.2,0.00021917,2]
[348472510,1736549442094,-16264.1408328,0.00021917,3]
[348472522,1736549443644,-2653.08791199,0.00021917,3]
[348472523,1736549443674,-62.86125521,0.00021917,3]
[348472524,1736549443684,-500.0,0.00021917,3]
[348472525,1736549443694,-669.46,0.00021917,3]
[348472526,1736549443703,-346.60032106,0.00021917,3]
[348472541,1736549446627,-153.39967894,0.00021917,3]
[348472542,1736549446646,-655.91,0.00021917,3]
[348472543,1736549446662,-594.83,0.00021917,3]
[348472544,1736549446673,-500.0,0.00021917,3]
[348472545,1736549446684,-1296.66390458,0.00021969,2]
[348472547,1736549446694,-379.16444176,0.00021973,2]
[348472549,1736549446703,-500.0,0.00021973,2]
[348472551,1736549446714,-500.0,0.00021973,2]
[348472553,1736549446724,-1124.51,0.00022,2]
[348472555,1736549446735,-482.15999856,0.00022058,2]
[348472556,1736549446745,-1296.66390458,0.00022107,2]
[348472558,1736549446756,-151.0,0.00022191,7]
[348472559,1736549446766,-500.0,0.00022191,3]
[348472561,1736549446776,-527.05,0.00022191,3]
[348472563,1736549446786,-500.0,0.00022191,2]
[348472565,1736549446796,-521.32,0.00022191,3]
[348472566,1736549446807,-500.0,0.00022191,3]
[348472568,1736549446817,-500.0,0.00022191,3]
[348472569,1736549446828,-487.13710066,0.00022191,3]
[348472570,1736549446841,-12.86289934,0.00022191,3]
[348472571,1736549446851,-151.0,0.00022191,7]
[348472572,1736549446862,-500.0,0.00022191,3]
[348472573,1736549446872,-500.0,0.00022191,3]
[348472574,1736549446883,-500.0,0.00022191,3]
[348472575,1736549446894,-520.54439112,0.00022191,3]
[348472576,1736549446905,-500.0,0.00022191,3]
[348472577,1736549446915,-500.0,0.00022191,3]
[348472578,1736549446926,-500.0,0.00022191,3]
[348472579,1736549446937,-898.53835149,0.00022191,3]
[348472581,1736550252927,3000.0,0.00015,60]
[348472583,1736550310997,10510.154892,0.00015,60]
[348472584,1736550311031,12142.845108,0.00015,60]
[348472586,1736550389641,157.997115,0.00013973,2]
[348472616,1736550632919,-229.90136696,0.000189,2]
[348472618,1736550632930,-1300.05610683,0.00020606,2]
[348472620,1736550632941,-1018.33810735,0.00020606,2]
[348472622,1736550632953,-4600.98522782,0.00020606,2]
[348472624,1736550632963,-165.95690682,0.0002061,2]
[348472735,1736550638751,-2096.04309318,0.0002061,2]
[348472737,1736550638761,-9324.75989998,0.00020983,2]
[348472739,1736550638771,-7345.06460927,0.00020992,2]
[348472741,1736550638783,-1979.69529071,0.00020992,2]
[348472743,1736550638793,-495.53348319,0.00020999,2]
[348472754,1736550638891,-3851.3317638,0.00020999,2]
[348472757,1736550638903,-517.5299952,0.00020999,2]
[348472958,1736550640935,-206.11367273,0.00020507,4]
[348472960,1736550640944,-240.89558054,0.00020999,2]
[348473105,1736550643723,-4219.46907725,0.00020999,2]
[348473106,1736550643734,-300.0,0.00021079,2]
[348473107,1736550643745,-675.775,0.0002108,2]
[348473108,1736550643755,-165.289111,0.0002113,2]
[348473109,1736550643765,-3000.0,0.000214,2]
[348473110,1736550643776,-500.0,0.00021409,2]
[348473111,1736550643785,-500.0,0.00021409,2]
[348473112,1736550643794,-500.0,0.00021409,2]
[348473113,1736550643803,-396.64756811,0.00021409,2]
[348473114,1736550643812,-500.0,0.00021409,2]
[348473115,1736550643822,-500.0,0.00021409,2]
[348473116,1736550643832,-500.0,0.00021409,2]
[348473117,1736550643842,-500.0,0.00021409,2]
[348473118,1736550643852,-247.34209373,0.00021409,2]
[348473119,1736550643862,-500.0,0.00021409,2]
[348473121,1736550643871,-500.0,0.00021409,2]
[348473122,1736550643882,-500.0,0.00021409,2]
[348473123,1736550643891,-500.0,0.00021409,2]
[348473125,1736550643900,-500.0,0.00021409,2]
[348473126,1736550643910,-500.0,0.00021409,2]
[348473128,1736550643921,-500.0,0.00021409,2]
[348473130,1736550643930,-500.0,0.00021409,2]
[348473132,1736550643939,-500.0,0.00021409,2]
[348473134,1736550643949,-500.0,0.00021409,2]
[348473136,1736550643958,-500.0,0.00021409,2]
[348473139,1736550643969,-486.85190219,0.00021409,2]
[348473141,1736550643979,-500.0,0.00021409,2]
[348473143,1736550643989,-500.0,0.00021409,2]
[348473145,1736550643998,-500.0,0.00021409,2]
[348473147,1736550644008,-500.0,0.00021409,2]
[348473149,1736550644018,-589.55181467,0.00021409,2]
[348473151,1736550644027,-500.0,0.00021409,2]
[348473152,1736550644037,-500.0,0.00021409,2]
[348473154,1736550644047,-4070.19337722,0.0002141,2]
[348473199,1736551396685,157.997115,0.00013973,2]
[348473257,1736551832144,-324.0130808,0.000189,2]
[348473259,1736551832155,-302.69733596,0.00019,2]
[348473261,1736551832166,-6.4164241,0.0001919,2]
[348473264,1736551832179,-296.28091186,0.0001919,2]
[348473266,1736551832188,-181.46895424,0.00019309,2]
[348473268,1736551832198,-146.01724521,0.0001938,2]
[348473413,1736551837871,-156.68009075,0.0001938,2]
[348473415,1736551837881,-303.7022709,0.0001957,2]
[348473417,1736551837891,-173.40448625,0.00019643,2]
[348473419,1736551837901,-1010.19438558,0.00020546,2]
[348473421,1736551837910,-167.279881,0.00020546,2]
[348473423,1736551837919,-300.0,0.00020999,2]
[348473425,1736551837930,-9885.744601,0.00021,2]
[348473427,1736551837939,-647.841,0.0002108,2]
[348473451,1736551838125,-873.76282478,0.0002141,2]
[348473453,1736551838141,-165.289111,0.0002154,7]
[348473455,1736551838152,-220.026,0.0002154,2]
[348473456,1736551838161,-161.14223445,0.00021809,2]
[348473457,1736551838172,-843.10188816,0.00021816,2]
[348473458,1736551838183,-152.0,0.00021851,2]
[348473459,1736551838193,-500.0,0.00021908,2]
[348473460,1736551838203,-500.0,0.00021908,2]
[348473461,1736551838213,-500.0,0.00021908,2]
[348473462,1736551838223,-500.0,0.00021908,2]
[348473463,1736551838234,-500.0,0.00021908,2]
[348473464,1736551838245,-500.0,0.00021908,2]
[348473465,1736551838254,-500.0,0.00021908,2]
[348473466,1736551838263,-123.81397688,0.00021908,2]
[348473467,1736551838276,-376.18602312,0.00021908,2]
[348473468,1736551838287,-500.0,0.00021908,2]
[348473469,1736551838296,-173.82823873,0.00021908,2]
[348473470,1736551838306,-500.0,0.00021908,2]
[348473471,1736551838316,-500.0,0.00021908,2]
[348473472,1736551838326,-500.0,0.00021908,2]
[348473473,1736551838336,-500.0,0.00021908,2]
[348473474,1736551838346,-500.0,0.00021908,2]
[348473475,1736551838356,-500.0,0.00021908,2]
[348473476,1736551838366,-500.0,0.00021908,2]
[348473477,1736551838376,-500.0,0.00021908,2]
[348473478,1736551838386,-500.0,0.00021908,2]
[348473479,1736551838396,-500.0,0.00021908,2]
[348473480,1736551838405,-500.0,0.00021908,2]
[348473481,1736551838415,-500.0,0.00021908,2]
[348473482,1736551838425,-500.0,0.00021908,2]
[348473484,1736551838436,-500.0,0.00021908,2]
[348473486,1736551838445,-500.0,0.00021908,2]
[348473487,1736551838455,-500.0,0.00021908,2]
[348473489,1736551838465,-500.0,0.00021908,2]
[348473491,1736551838474,-500.0,0.00021908,2]
[348473493,1736551838484,-500.0,0.00021908,2]
[348473494,1736551838493,-500.0,0.00021908,2]
[348473496,1736551838504,-500.0,0.00021908,2]
[348473497,1736551838513,-500.0,0.00021908,2]
[348473498,1736551838523,-500.0,0.00021908,2]
[348473499,1736551838534,-500.0,0.00021908,2]
[348473500,1736551838545,-148.65627497,0.00021908,2]
[348473501,1736551838558,-351.34372503,0.00021908,2]
[348473502,1736551838569,-500.0,0.00021908,2]
[348473503,1736551838579,-500.0,0.00021908,2]
[348473504,1736551838590,-500.0,0.00021908,2]
[348473505,1736551838600,-500.0,0.00021908,2]
[348473506,1736551838610,-403.20245505,0.00021908,2]
[348473507,1736551838619,-500.0,0.00021908,2]
[348473508,1736551838630,-500.0,0.00021908,2]
[348473509,1736551838640,-500.0,0.00021908,2]
[348473510,1736551838650,-500.0,0.00021908,2]
[348473511,1736551838659,-285.28020043,0.00021908,2]
[348473512,1736551838669,-500.0,0.00021908,2]
[348473513,1736551838679,-500.0,0.00021908,2]
[348473514,1736551838689,-500.0,0.00021908,2]
[348473515,1736551838699,-500.0,0.00021908,2]
[348473516,1736551838709,-500.0,0.00021908,2]
[348473517,1736551838719,-500.0,0.00021908,2]
[348473518,1736551838728,-445.93446953,0.00021908,2]
[348473519,1736551838738,-500.0,0.00021908,2]
[348473520,1736551838748,-500.0,0.00021908,2]
[348473521,1736551838757,-500.0,0.00021908,2]
[348473522,1736551838768,-500.0,0.00021908,2]
[348473523,1736551838778,-500.0,0.00021908,2]
[348473524,1736551838788,-500.0,0.00021908,2]
[348473525,1736551838798,-153.7,0.00021915,2]
[348473526,1736551838809,-431.85531859,0.00021915,2]
[348473527,1736551838820,-151.0,0.00021916,2]
[348473528,1736551838830,-201.950427,0.00021916,2]
[348473529,1736551838840,-151.0,0.00021916,2]
[348473530,1736551838849,-151.0,0.00021916,2]
[348473531,1736551838858,-151.0,0.00021916,2]
[348473532,1736551838868,-151.0,0.00021916,2]
[348473533,1736551838878,-62056.74541071,0.00021916,5]
[348473534,1736551838888,-17320.301108,0.00021916,5]
[348473553,1736551843069,-489.6289754,0.00021916,5]
[348473561,1736551845908,-1591.3524692,0.00021916,5]
[348473562,1736551845919,-2017.3517325,0.00021916,5]
[348473563,1736551845929,-151.0,0.00021917,2]
[348473564,1736551845940,-500.0,0.00021917,2]
[348473565,1736551845949,-151.0,0.00021917,2]
[348473566,1736551845958,-151.0,0.00021917,2]
[348473567,1736551845968,-151.0,0.00021917,2]
[348473568,1736551845977,-151.0,0.00021917,2]
[348473569,1736551845987,-151.0,0.00021917,2]
[348473570,1736551845997,-500.0,0.00021917,3]
[348473571,1736551846006,-151.0,0.00021917,2]
[348473572,1736551846015,-190.2797,0.00021917,2]
[348473573,1736551846025,-500.0,0.00021917,3]
[348473574,1736551846035,-151.0,0.00021917,2]
[348473575,1736551846045,-151.0,0.00021917,2]
[348473576,1736551846055,-151.0,0.00021917,2]
[348473577,1736551846064,-151.0,0.00021917,2]
[348473578,1736551846073,-500.0,0.00021917,3]
[348473579,1736551846082,-151.0,0.00021917,2]
[348473580,1736551846091,-304.24654649,0.00021917,3]
[348473581,1736551846100,-151.0,0.00021917,2]
[348473582,1736551846112,-500.0,0.00021917,3]
[348473583,1736551846123,-500.0,0.00021917,3]
[348473584,1736551846134,-500.0,0.00021917,3]
[348473585,1736551846145,-500.0,0.00021917,3]
[348473586,1736551846156,-505.58,0.00021917,3]
[348473587,1736551846167,-500.0,0.00021917,2]
[348473588,1736551846176,-500.0,0.00021917,3]
[348473589,1736551846186,-500.0,0.00021917,3]
[348473590,1736551846195,-151.0,0.00021917,2]
[348473591,1736551846205,-151.0,0.00021917,2]
[348473592,1736551846215,-151.0,0.00021917,2]
[348473593,1736551846225,-151.0,0.00021917,2]
[348473594,1736551846236,-172.546227,0.00021917,2]
[348473595,1736551846247,-151.0,0.00021917,2]
[348473596,1736551846257,-151.0,0.00021917,2]
[348473597,1736551846266,-151.0,0.00021917,2]
[348473598,1736551846275,-504.64779304,0.00021917,3]
[348473599,1736551846285,-151.0,0.00021917,2]
[348473600,1736551846294,-500.0,0.00021917,3]
[348473601,1736551846303,-500.0,0.00021917,3]
[348473602,1736551846313,-500.0,0.00021917,3]
[348473603,1736551846323,-500.0,0.00021917,3]
[348473604,1736551846335,-500.0,0.00021917,3]
[348473605,1736551846345,-500.0,0.00021917,3]
[348473606,1736551846355,-500.0,0.00021917,3]
[348473607,1736551846364,-176.46,0.00021917,3]
[348473608,1736551846374,-500.0,0.00021917,3]
[348473609,1736551846383,-151.0,0.00021917,2]
[348473610,1736551846392,-230.788871,0.00021917,2]
[348473611,1736551846401,-500.0,0.00021917,3]
[348473612,1736551846411,-500.0,0.00021917,3]
[348473613,1736551846420,-544.62,0.00021917,3]
[348473614,1736551846430,-151.0,0.00021917,2]
[348473615,1736551846439,-151.0,0.00021917,2]
[348473616,1736551846448,-151.0,0.00021917,2]
[348473617,1736551846459,-151.0,0.00021917,2]
[348473618,1736551846468,-151.0,0.00021917,2]
[348473619,1736551846478,-151.0,0.00021917,2]
[348473620,1736551846487,-288.831231,0.00021917,2]
[348473621,1736551846497,-151.0,0.00021917,2]
[348473622,1736551846506,-151.0,0.00021917,2]
[348473623,1736551846516,-500.0,0.00021917,3]
[348473624,1736551846525,-500.0,0.00021917,3]